bitfinex/quotes_BTCUSD_20211001
["timestamp","ask_amount","ask_price","bid_price","bid_amount"]
[1633085913063,0.0012066,47220.0,47201.0,0.220196]
[1633085913263,0.00123201,47213.0,47202.0,0.49057481]
[1633085913461,0.089796,47213.0,47200.0,0.00127917]
[1633085913660,0.089796,47213.0,47197.0,0.00124686]
[1633085913861,0.089796,47213.0,47193.0,0.00121473]
[1633085914061,0.079296,47213.0,47197.0,0.00122702]
[1633085914263,0.079296,47213.0,47203.0,0.07719649]
[1633085914463,0.079296,47213.0,47211.0,0.29710809]
[1633085914862,0.079296,47213.0,47207.0,0.36955996]
[1633085915063,0.079296,47213.0,47206.0,0.17682523]
[1633085915264,0.4170809,47212.0,47189.0,0.00121941]
[1633085915662,0.009829,47211.0,47189.0,0.00121941]
[1633085915866,0.527684,47211.0,47193.0,0.35023798]
[1633085916065,0.527684,47211.0,47187.0,0.10114978]
[1633085916267,0.09564163,47203.0,47192.0,0.18419048]
[1633085916465,0.09564163,47203.0,47187.0,0.10114978]
[1633085916466,0.09684008,47206.0,47187.0,0.10114978]
[1633085916668,0.009829,47205.0,47188.0,0.0381499]
[1633085916867,0.11324428,47198.0,47187.0,0.0999]
[1633085917068,0.009829,47197.0,47187.0,0.0999]
[1633085917266,0.66229136,47201.0,47196.0,0.2499]
[1633085917466,0.1000017,47200.0,47196.0,0.2499]
[1633085917665,0.009829,47200.0,47196.0,0.2499]
[1633085917867,0.009829,47200.0,47196.0,0.4998]
[1633085918068,0.41969334,47199.0,47196.0,0.4998]
[1633085918268,0.00123527,47197.0,47181.0,0.23613971]
[1633085918465,0.00123527,47197.0,47180.0,0.00124875]
[1633085918466,0.009829,47196.0,47180.0,0.00124875]
[1633085918668,0.08480031,47195.0,47186.0,0.07363209]
[1633085918867,0.35426413,47192.0,47176.0,0.00127235]
[1633085919067,0.35426413,47192.0,47174.0,0.00256635]
[1633085919068,0.42609446,47191.0,47174.0,0.00256635]
[1633085919269,0.11783273,47184.0,47174.0,0.00256635]
[1633085919468,0.42232849,47183.0,47178.0,0.21867985]
[1633085919668,0.46586822,47190.0,47178.0,0.21867985]
[1633085919871,0.46586822,47190.0,47186.0,0.23782501]
[1633085920073,0.009829,47189.0,47187.0,0.09041189]
[1633085920270,0.009829,47189.0,47181.0,0.0012248]
[1633085920471,0.11730519,47189.0,47181.0,0.0012248]
[1633085920673,0.00121423,47186.0,47172.0,0.1004]
[1633085920873,0.12135265,47178.0,47172.0,0.1004]
[1633085921079,0.00121423,47186.0,47178.0,0.22576879]
[1633085921875,0.009829,47185.0,47178.0,0.22576879]
[1633085922676,0.004829,47185.0,47178.0,0.22576879]
[1633085922880,0.004829,47185.0,47179.0,7.273e-05]
[1633085923081,0.00126057,47190.0,47179.0,7.273e-05]
[1633085923082,1.5,47198.0,47185.0,0.00129943]
[1633085923281,0.317958,47196.0,47184.0,0.00121674]
[1633085923478,0.00128619,47192.0,47179.0,7.273e-05]
[1633085923681,0.004827,47191.0,47179.0,7.273e-05]
[1633085923878,0.09056427,47189.0,47179.0,7.273e-05]
[1633085924080,0.11179382,47184.0,47173.0,0.35245131]
[1633085924276,0.11179382,47184.0,47170.0,0.00127715]
[1633085924277,0.42174002,47183.0,47178.0,0.18851507]
[1633085924477,0.11179382,47184.0,47170.0,0.00127715]
[1633085924478,0.004827,47182.0,47170.0,0.00127715]
[1633085924676,0.44701288,47183.0,47170.0,0.00127715]
[1633085924876,0.43800063,47188.0,47170.0,0.00127715]
[1633085925078,0.10067069,47184.0,47170.0,0.00127715]
[1633085925276,0.39700822,47183.0,47170.0,0.00127715]
[1633085925479,0.10067069,47184.0,47171.0,0.19334664]
[1633085925881,0.1032937,47181.0,47170.0,0.00127715]
[1633085926083,0.2,47182.0,47169.0,0.0012]
[1633085926279,0.00121124,47177.0,47169.0,0.0012]
[1633085926479,0.2,47182.0,47169.0,0.0012]
[1633085926681,0.0012671,47184.0,47175.0,0.2232]
[1633085926883,0.004827,47183.0,47173.0,0.22049248]
[1633085927082,0.01470674,47182.0,47173.0,0.22049248]
[1633085927683,0.29907452,47182.0,47172.0,0.09442425]
[1633085927882,0.00127984,47181.0,47172.0,0.09442425]
[1633085928083,0.00127984,47181.0,47169.0,0.0012]
[1633085928488,0.10731806,47175.0,47169.0,0.0012]
[1633085928685,0.50097856,47176.0,47162.0,0.0004]
[1633085928884,1.71881435,47175.0,47169.0,0.2232]
[1633085929082,0.07310838,47170.0,47168.0,0.00125263]
[1633085929683,0.45,47169.0,47161.0,0.31427163]
[1633085929883,0.43480413,47173.0,47168.0,0.00128474]
[1633085930086,0.50097856,47176.0,47168.0,0.00128474]
[1633085930087,0.30097856,47176.0,47168.0,0.00128474]
[1633085930285,0.20254564,47181.0,47168.0,0.00128474]
[1633085930286,0.0012658,47181.0,47168.0,0.00128474]
[1633085930684,0.004827,47180.0,47168.0,0.00128474]
[1633085930884,0.08976623,47174.0,47168.0,0.00128474]
[1633085931087,0.18930107,47174.0,47168.0,0.00128474]
[1633085931485,0.18930107,47174.0,47162.0,0.573982]
[1633085931686,0.18930107,47174.0,47168.0,0.2232]
[1633085931888,0.4762875,47175.0,47162.0,0.573982]
[1633085932087,0.40893142,47174.0,47163.0,0.220209]
[1633085932285,0.2,47173.0,47161.0,0.00122886]
[1633085932684,0.2,47173.0,47167.0,0.2232]
[1633085932886,0.2,47173.0,47161.0,0.09079044]
[1633085932887,0.08857613,47170.0,47161.0,0.09079044]
[1633085933086,0.39739804,47169.0,47152.0,0.00241807]
[1633085933287,0.39739804,47169.0,47157.0,0.318076]
[1633085933546,0.014722,47174.0,47163.0,0.22049662]
[1633085933890,0.2,47175.0,47171.0,0.18088963]
[1633085934090,0.21203949,47190.0,47174.0,0.0012444]
[1633085934287,0.11154104,47183.0,47180.0,0.0012132]
[1633085934489,0.004827,47182.0,47177.0,0.0978167]
[1633085934687,0.11154104,47183.0,47175.0,0.05]
[1633085934888,0.11274622,47183.0,47174.0,0.40106536]
[1633085935088,0.11398493,47183.0,47172.0,0.05]
[1633085935287,0.11093823,47175.0,47173.0,0.58658282]
[1633085935587,0.08200532,47171.0,47165.0,2.67e-06]
[1633085935794,0.08200532,47171.0,47153.0,0.09526655]
[1633085935795,0.4368244,47147.0,47145.0,0.01737069]
[1633085935992,0.4368244,47147.0,47127.0,0.0008]
[1633085935993,0.12238934,47136.0,47127.0,0.0008]
[1633085936195,1.25,47135.0,47133.0,0.0004]
[1633085936390,0.47094415,47134.0,47133.0,0.0004]
[1633085936592,0.00126268,47135.0,47120.0,0.61020343]
[1633085936788,0.5,47134.0,47122.0,0.0002]
[1633085936989,0.00128603,47136.0,47133.0,0.20364101]
[1633085937188,0.20034,47155.0,47130.0,0.0004]
[1633085937189,0.11510532,47142.0,47130.0,0.0004]
[1633085937390,0.39598577,47141.0,47130.0,0.0004]
[1633085937588,0.004827,47140.0,47130.0,0.0004]
[1633085937790,0.07278658,47139.0,47130.0,0.0004]
[1633085937988,0.01478922,47140.0,47134.0,0.2232]
[1633085938191,0.01478922,47140.0,47131.0,0.2499]
[1633085938391,0.00122021,47138.0,47131.0,0.4998]
[1633085938588,0.09441491,47138.0,47131.0,0.4998]
[1633085938992,0.01478922,47140.0,47131.0,0.4998]
[1633085939191,0.09626933,47136.0,47131.0,0.4998]
[1633085939387,0.37469561,47138.0,47131.0,0.4998]
[1633085939990,0.00127443,47141.0,47131.0,0.4998]
[1633085940190,0.00127443,47141.0,47136.0,0.2232]
[1633085940394,0.4368244,47147.0,47146.0,0.08900865]
[1633085940591,1.5,47146.0,47127.0,0.03411562]
[1633085940792,0.00124834,47144.0,47128.0,0.1]
[1633085940990,0.38019216,47146.0,47130.0,0.65675469]
[1633085941192,0.09253989,47137.0,47131.0,0.220209]
[1633085941393,0.00129165,47132.0,47131.0,0.220209]
[1633085941590,0.00129165,47132.0,47126.0,0.0004]
[1633085941791,0.00128994,47139.0,47127.0,0.220209]
[1633085941792,0.0012617,47137.0,47127.0,0.220209]
[1633085941990,0.2,47143.0,47138.0,0.237302]
[1633085942190,0.2,47143.0,47126.0,0.0004]
[1633085942191,0.004827,47142.0,47126.0,0.0004]
[1633085942391,0.518271,47143.0,47128.0,0.33687077]
[1633085942592,0.09754026,47137.0,47136.0,0.2499]
[1633085942994,0.10236726,47137.0,47136.0,0.2499]
[1633085943192,0.1036189,47137.0,47136.0,0.2499]
[1633085943391,0.1036189,47137.0,47136.0,0.2249]
[1633085943594,0.11840608,47137.0,47136.0,0.2249]
[1633085943792,0.31840608,47137.0,47136.0,0.2249]
[1633085943995,0.31840608,47137.0,47136.0,0.22515743]
[1633085944194,0.22086582,47137.0,47136.0,0.22515743]
[1633085944394,0.17213787,47137.0,47136.0,0.22515743]
[1633085944594,0.00127205,47137.0,47136.0,0.22515743]
[1633085944992,0.00127205,47137.0,47136.0,0.23410359]
[1633085945197,1.72447205,47137.0,47136.0,0.07311659]
[1633085945398,0.00517077,47136.0,47132.0,0.2499]
[1633085945651,0.00128298,47133.0,47132.0,0.2499]
[1633085946251,0.00128298,47133.0,47126.0,0.0004]
[1633085946452,0.0897408,47130.0,47126.0,0.0004]
[1633085946655,0.00128298,47133.0,47126.0,0.0004]
[1633085946851,0.00128298,47133.0,47129.0,0.19055889]
[1633085947053,0.00521657,47137.0,47129.0,0.19055889]
[1633085947252,0.00521657,47137.0,47133.0,0.2232]
[1633085947456,0.00521657,47137.0,47136.0,0.001234]
[1633085947457,0.004,47137.0,47136.0,0.001234]
[1633085947658,0.4368244,47147.0,47144.0,0.22170874]
[1633085947855,0.4368244,47147.0,47144.0,0.05]
[1633085948054,0.518255,47146.0,47133.0,0.00123919]
[1633085948254,0.2,47146.0,47129.0,0.15]
[1633085948457,0.36913092,47145.0,47129.0,0.15]
[1633085948659,0.56913092,47145.0,47125.0,0.00160969]
[1633085948859,0.01186565,47144.0,47126.0,0.0504]
[1633085949059,0.00128036,47139.0,47132.0,0.28284003]
[1633085949262,0.12225207,47137.0,47126.0,0.0004]
[1633085949459,0.00128036,47139.0,47126.0,0.0004]
[1633085949860,1.5,47138.0,47121.0,0.1426]
[1633085950061,0.32774576,47132.0,47121.0,0.1426]
[1633085950261,0.45550102,47131.0,47121.0,0.1426]
[1633085950462,0.09804951,47128.0,47122.0,0.00446042]
[1633085950661,0.39483492,47127.0,47122.0,0.00446042]
[1633085950861,0.00121122,47126.0,47122.0,0.00446042]
[1633085951058,0.39294335,47130.0,47122.0,0.00446042]
[1633085951263,0.318346,47130.0,47122.0,0.00446042]
[1633085952060,0.0977523,47128.0,47122.0,0.00446042]
[1633085952259,0.0977523,47128.0,47118.0,0.19756042]
[1633085952260,1.5,47127.0,47118.0,0.19756042]
[1633085952460,0.37124231,47127.0,47118.0,0.39134718]
[1633085952661,0.0977523,47128.0,47118.0,0.39134718]
[1633085952859,0.0977523,47128.0,47118.0,0.19756042]
[1633085953060,0.0977523,47128.0,47118.0,0.24756042]
[1633085953259,0.0977523,47128.0,47118.0,0.24232933]
[1633085953463,0.0977523,47128.0,47118.0,0.04516891]
[1633085953661,0.0977523,47128.0,47118.0,0.0004]
[1633085953862,0.00120763,47137.0,47127.0,0.23779613]
[1633085954062,0.424457,47144.0,47132.0,0.33917772]
[1633085954262,0.004,47133.0,47118.0,0.0004]
[1633085954467,0.004,47133.0,47096.0,0.00207332]
[1633085954468,4.11814346,47100.0,47096.0,0.00207332]
[1633085954661,4.11814346,47100.0,47099.0,2.47261679]
[1633085954662,2.82352774,47100.0,47099.0,2.47261679]
[1633085954861,0.0012225,47121.0,47100.0,2.5003]
[1633085955066,0.0012225,47121.0,47084.0,0.00124575]
[1633085955067,1.5,47096.0,47084.0,0.00124575]
[1633085955267,1.5,47096.0,47077.0,0.0004]
[1633085955268,0.2198,47070.0,47069.0,0.00163839]
[1633085955463,0.004,47084.0,47069.0,0.00163839]
[1633085955464,0.00154,47084.0,47070.0,2.46573646]
[1633085955666,0.1,47096.0,47070.0,2.46573646]
[1633085955667,0.00123302,47096.0,47095.0,0.00124671]
[1633085955865,0.220299,47097.0,47095.0,0.22444671]
[1633085956067,0.09482329,47082.0,47074.0,0.00129737]
[1633085956265,0.4071444,47081.0,47075.0,0.220528]
[1633085956464,0.4071444,47081.0,47070.0,1.97280548]
[1633085956465,0.4079847,47081.0,47070.0,1.97280548]
[1633085956669,0.0012403,47081.0,47072.0,0.09013593]
[1633085956864,0.00126617,47083.0,47076.0,0.2232]
[1633085957068,0.00126617,47083.0,47070.0,1.94320548]
[1633085957263,0.00126617,47083.0,47077.0,0.23538428]
[1633085957462,0.00126617,47083.0,47070.0,1.94320548]
[1633085957463,0.00086617,47083.0,47070.0,1.94320548]
[1633085957667,0.00088705,47074.0,47070.0,1.93360548]
[1633085957866,0.00048705,47074.0,47070.0,1.93360548]
[1633085958066,0.21247533,47077.0,47072.0,0.2232]
[1633085958268,0.05416929,47086.0,47078.0,0.0004]
[1633085958269,0.00123451,47086.0,47078.0,0.0004]
[1633085958468,1.0477,47097.0,47080.0,0.17750328]
[1633085958665,3.03805943,47098.0,47084.0,0.00126975]
[1633085958666,0.220528,47096.0,47084.0,0.00126975]
[1633085958866,0.220528,47096.0,47080.0,0.17750328]
[1633085958867,0.00120498,47085.0,47080.0,0.17750328]
[1633085959065,0.00120051,47087.0,47085.0,0.08568447]
[1633085959267,3.15557457,47098.0,47080.0,0.17750328]
[1633085959268,0.21239478,47095.0,47086.0,0.2232]
[1633085959467,0.220299,47094.0,47085.0,0.22722173]
[1633085959869,3.03805943,47098.0,47080.0,0.32750328]
[1633085959870,3.03805943,47098.0,47093.0,0.0012942]
[1633085960067,0.00217701,47092.0,47080.0,0.32750328]
[1633085960370,0.42155182,47084.0,47080.0,0.32750328]
[1633085960569,0.42155182,47084.0,47080.0,0.17750328]
[1633085960570,0.31705163,47084.0,47080.0,0.17750328]
[1633085960966,0.55128936,47081.0,47080.0,0.17750328]
[1633085961168,0.00217701,47080.0,47077.0,0.0004]
[1633085961368,0.00124925,47079.0,47077.0,0.0004]
[1633085961570,1.5,47079.0,47078.0,0.00125772]
[1633085961770,0.220528,47079.0,47058.0,0.0008]
[1633085961968,0.00217701,47080.0,47071.0,0.42723775]
[1633085962172,0.00217701,47080.0,47072.0,0.220528]
[1633085962369,0.00217701,47080.0,47071.0,0.0004]
[1633085962570,0.00085629,47078.0,47071.0,0.0004]
[1633085962969,0.00085629,47078.0,47072.0,0.45558524]
[1633085963168,0.00085629,47078.0,47071.0,0.0004]
[1633085963780,0.08460091,47080.0,47070.0,1.5582775]
[1633085963979,0.08460091,47080.0,47070.0,1.6582775]
[1633085963980,0.08420091,47080.0,47070.0,1.6582775]
[1633085964183,0.00123636,47079.0,47074.0,0.22250557]
[1633085964981,0.00177701,47080.0,47074.0,0.22250557]
[1633085964982,0.00177701,47080.0,47075.0,0.0001097]
[1633085965183,0.00207701,47080.0,47076.0,0.220528]
[1633085965385,0.01421831,47079.0,47077.0,0.08994234]
[1633085965583,0.01421831,47079.0,47078.0,0.215528]
[1633085965784,0.01421831,47079.0,47078.0,0.26673725]
[1633085965984,0.01421831,47079.0,47078.0,0.265528]
[1633085966183,0.01381831,47079.0,47078.0,1.565528]
[1633085966383,0.01381831,47079.0,47078.0,1.849728]
[1633085966583,0.00207701,47080.0,47079.0,1.5]
[1633085966785,7.01e-06,47080.0,47079.0,2.19720724]
[1633085966987,3.03805943,47098.0,47088.0,0.0004]
[1633085967186,0.00125349,47121.0,47088.0,0.0004]
[1633085967187,0.00129703,47131.0,47099.0,0.21470773]
[1633085967395,0.00148158,47125.0,47117.0,0.00121601]
[1633085967587,0.220612,47124.0,47106.0,0.00121912]
[1633085967786,0.00120766,47120.0,47106.0,0.00121912]
[1633085967984,0.11,47124.0,47108.0,0.00123725]
[1633085968184,0.0002,47125.0,47108.0,0.00123725]
[1633085968384,0.0002,47125.0,47124.0,0.20388189]
[1633085968585,0.0002,47125.0,47118.0,0.37478175]
[1633085968784,0.0952408,47124.0,47118.0,0.52478175]
[1633085968986,0.0002,47125.0,47118.0,0.1]
[1633085969185,0.220612,47124.0,47111.0,0.1]
[1633085969387,0.0002,47125.0,47111.0,0.1]
[1633085969586,0.00125503,47124.0,47111.0,0.1]
[1633085969890,0.00123722,47122.0,47107.0,0.05126706]
[1633085970085,0.08033139,47116.0,47109.0,0.32082593]
[1633085970287,0.08033139,47116.0,47109.0,0.15]
[1633085970487,0.00126714,47113.0,47098.0,2.47125721]
[1633085970686,0.12136772,47115.0,47098.0,2.47125721]
[1633085970990,1.61038016,47099.0,47098.0,2.47125721]
[1633085971189,0.1011831,47098.0,47088.0,0.0004]
[1633085971388,0.65904071,47097.0,47088.0,0.0004]
[1633085971786,0.00129758,47093.0,47088.0,0.0004]
[1633085972391,0.00129758,47093.0,47089.0,0.00927429]
[1633085972589,0.220612,47092.0,47089.0,0.00927429]
[1633085972891,0.1011831,47098.0,47089.0,0.00927429]
[1633085972892,0.1011831,47098.0,47090.0,0.56037694]
[1633085973089,0.1011831,47098.0,47097.0,1.48627187]
[1633085973290,0.5,47109.0,47098.0,0.0068269]
[1633085973492,0.5,47109.0,47098.0,1.15211945]
[1633085973690,0.5,47109.0,47103.0,0.2232]
[1633085973892,0.06840859,47134.0,47103.0,0.2232]
[1633085973893,0.5,47116.0,47106.0,0.318367]
[1633085974290,0.5,47116.0,47106.0,0.468367]
[1633085974488,0.5,47116.0,47110.0,0.17921459]
[1633085974689,0.5,47116.0,47110.0,0.22921459]
[1633085974892,0.5,47116.0,47103.0,0.84899627]
[1633085974893,0.00128461,47113.0,47103.0,0.212269]
[1633085975100,0.11916403,47107.0,47098.0,0.02429255]
[1633085975489,0.00127258,47106.0,47104.0,0.00023289]
[1633085975690,0.85122402,47105.0,47104.0,0.00023289]
[1633085975890,0.220612,47105.0,47104.0,0.00023289]
[1633085976291,1.418453,47116.0,47104.0,0.00023289]
[1633085976491,0.00705299,47105.0,47104.0,0.00023289]
[1633085976690,1.1288652,47105.0,47104.0,0.00023289]
[1633085976893,0.2288652,47105.0,47104.0,0.00023289]
[1633085977292,0.22766499,47105.0,47104.0,0.00023289]
[1633085977691,0.00705299,47105.0,47104.0,0.07136517]
[1633085977892,0.00124948,47115.0,47104.0,0.00953093]
[1633085978091,0.220612,47114.0,47104.0,0.00953093]
[1633085978291,0.00124948,47115.0,47104.0,0.00953093]
[1633085978555,0.09791083,47112.0,47104.0,0.00953093]
[1633085978694,1.720612,47111.0,47098.0,0.1]
[1633085978892,1.495,47111.0,47102.0,0.18940272]
[1633085979093,1.495,47111.0,47097.0,0.4998]
[1633085979094,0.11781713,47104.0,47097.0,0.4998]
[1633085979294,0.30563845,47116.0,47100.0,0.2232]
[1633085979493,0.5,47118.0,47097.0,0.4998]
[1633085979694,0.5,47118.0,47102.0,0.0012315]
[1633085979695,0.00125873,47117.0,47102.0,0.0012315]
[1633085979895,0.0002,47125.0,47107.0,0.00124108]
[1633085980097,1.554,47122.0,47110.0,0.212247]
[1633085980294,0.318389,47124.0,47110.0,0.212247]
[1633085980498,0.5,47123.0,47119.0,0.0012264]
[1633085980698,0.0002,47125.0,47119.0,0.0012264]
[1633085980896,0.0012826,47120.0,47111.0,0.24]
[1633085981100,0.0002,47125.0,47115.0,0.20598594]
[1633085981296,0.0002,47125.0,47116.0,0.42638042]
[1633085981558,0.12060643,47121.0,47116.0,0.05]
[1633085981696,0.0002,47125.0,47116.0,0.44960161]
[1633085981895,0.01166835,47124.0,47116.0,0.05]
[1633085982095,0.01166835,47124.0,47116.0,0.12]
[1633085982296,0.01166835,47124.0,47114.0,0.36599474]
[1633085982495,0.01166835,47124.0,47109.0,0.42274896]
[1633085982700,0.12101194,47116.0,47109.0,0.52274896]
[1633085982906,0.0909795,47115.0,47110.0,0.220612]
[1633085983098,0.01166835,47124.0,47110.0,0.220612]
[1633085983299,0.00146158,47125.0,47117.0,0.22555784]
[1633085983498,0.00274945,47125.0,47111.0,0.3947426]
[1633085983802,0.00121191,47118.0,47111.0,0.00466514]
[1633085984002,1.50128357,47112.0,47111.0,0.00466514]
[1633085984200,1.50128357,47112.0,47103.0,0.37120592]
[1633085984201,0.22189557,47112.0,47103.0,0.37120592]
[1633085984400,0.00122251,47106.0,47102.0,0.4998]
[1633085984602,0.00122251,47106.0,47103.0,0.220612]
[1633085984803,0.00121899,47114.0,47102.0,0.47349555]
[1633085985003,0.31248133,47126.0,47113.0,0.19882655]
[1633085985004,0.39770414,47125.0,47113.0,0.19882655]
[1633085985211,0.00121075,47121.0,47109.0,0.18462458]
[1633085985402,0.00121075,47121.0,47107.0,0.21226]
[1633085985801,0.06481162,47118.0,47107.0,0.21226]
[1633085986203,0.20625096,47110.0,47104.0,0.23151877]
[1633085986400,0.20625096,47110.0,47100.0,0.212286]
[1633085986401,0.00127224,47107.0,47100.0,0.212286]
[1633085986603,0.00120417,47117.0,47101.0,0.220612]
[1633085986802,0.42688974,47120.0,47100.0,0.21357859]
[1633085987002,0.00123952,47122.0,47101.0,0.43300518]
[1633085987202,0.00129391,47119.0,47101.0,0.63010518]
[1633085987401,0.01531727,47119.0,47101.0,0.1971]
[1633085987603,0.08405331,47113.0,47102.0,0.05]
[1633085987805,0.01531727,47119.0,47102.0,0.05]
[1633085988204,0.01402336,47119.0,47102.0,0.05]
[1633085988402,0.01402336,47119.0,47113.0,0.21400453]
[1633085988803,0.18575863,47120.0,47113.0,0.26400453]
[1633085989003,0.18704933,47120.0,47113.0,0.05]
[1633085989207,0.1103067,47105.0,47103.0,0.00371076]
[1633085989403,0.00585001,47113.0,47103.0,0.00371076]
[1633085990004,1.02624981,47110.0,47109.0,0.2073373]
[1633085990204,0.220612,47110.0,47109.0,0.2073373]
[1633085990408,0.00585001,47113.0,47109.0,0.2073373]
[1633085990804,0.00585001,47113.0,47103.0,0.21598876]
[1633085991603,0.00585001,47113.0,47103.0,0.26598876]
[1633085991806,0.00585001,47113.0,47112.0,0.19359002]
[1633085992208,0.00585001,47113.0,47112.0,0.92934329]
[1633085992507,0.0002,47125.0,47121.0,0.17989245]
[1633085992706,0.220612,47124.0,47122.0,0.52070424]
[1633085992908,0.12085795,47125.0,47122.0,0.368287]
[1633085993108,0.268287,47122.0,47113.0,0.01170002]
[1633085993309,1.60843155,47114.0,47113.0,0.01170002]
[1633085993566,0.32904355,47114.0,47113.0,0.01170002]
[1633085993804,0.220612,47114.0,47113.0,0.01170002]
[1633085994006,0.64241137,47122.0,47113.0,0.01170002]
[1633085994208,0.00121694,47120.0,47113.0,0.01170002]
[1633085994406,0.220612,47116.0,47113.0,0.01541027]
[1633085994607,0.22185025,47114.0,47113.0,2.7e-07]
[1633085995008,0.60835032,47114.0,47113.0,2.7e-07]
[1633085995411,0.62991916,47114.0,47113.0,2.7e-07]
[1633085995610,0.85311916,47114.0,47113.0,2.7e-07]
[1633085996007,0.62991916,47114.0,47113.0,2.7e-07]
[1633085996610,0.85311916,47114.0,47113.0,2.7e-07]
[1633085996808,0.54034325,47114.0,47113.0,2.7e-07]
[1633085997108,0.22185025,47114.0,47113.0,2.7e-07]
[1633085998509,0.82433928,47114.0,47113.0,2.7e-07]
[1633085998710,1.24454785,47114.0,47113.0,2.7e-07]
[1633085998909,0.00128524,47095.0,47094.0,0.4998]
[1633085999312,0.3937553,47102.0,47094.0,0.4998]
[1633085999570,0.00120147,47107.0,47094.0,0.70733289]
[1633085999571,0.00128849,47104.0,47094.0,0.70733289]
[1633085999711,0.00128849,47104.0,47094.0,0.4998]
[1633085999912,0.00126422,47097.0,47094.0,0.4998]
[1633086000111,0.07457114,47103.0,47094.0,0.2499]
[1633086000311,0.00127606,47112.0,47100.0,0.00125047]
[1633086000516,0.220612,47111.0,47100.0,0.00125047]
[1633086000713,0.220612,47111.0,47105.0,0.22151074]
[1633086000913,1.30502358,47120.0,47113.0,0.18108218]
[1633086000914,0.318413,47116.0,47113.0,0.18108218]
[1633086001113,0.220538,47115.0,47114.0,0.38020483]
[1633086001315,0.220538,47115.0,47114.0,0.50518733]
[1633086001316,0.19457758,47115.0,47114.0,0.50518733]
[1633086001515,0.5,47121.0,47114.0,1.01227805]
[1633086001712,0.26037306,47122.0,47120.0,0.00129156]
[1633086001914,0.26024107,47122.0,47121.0,0.31949733]
[1633086002116,0.26024107,47122.0,47121.0,0.00120033]
[1633086002312,0.26024107,47122.0,47121.0,0.10120033]
[1633086002577,0.26024107,47122.0,47121.0,0.15129216]
[1633086002715,0.26024107,47122.0,47121.0,0.51683224]
[1633086002916,0.26024107,47122.0,47121.0,0.37180716]
[1633086003120,0.26024107,47122.0,47121.0,0.73325998]
[1633086003319,0.0002,47125.0,47122.0,0.26024107]
[1633086003519,0.0002,47129.0,47124.0,0.22299206]
[1633086003717,0.0002,47129.0,47128.0,0.2217635]
[1633086003918,0.0002,47129.0,47128.0,1.27402711]
[1633086004117,0.0002,47136.0,47128.0,2.39624994]
[1633086004318,0.0002,47136.0,47134.0,0.0012299]
[1633086004517,0.0002,47136.0,47134.0,0.8752049]
[1633086004718,0.0002,47155.0,47134.0,1.37870527]
[1633086004917,0.0002,47155.0,47143.0,0.00126677]
[1633086005118,0.0002,47155.0,47143.0,0.87524177]
[1633086005318,0.0002,47155.0,47143.0,1.48511074]
[1633086005580,0.0002,47155.0,47153.0,0.00128846]
[1633086005722,0.0002,47155.0,47154.0,0.87519705]
[1633086005920,0.0002,47155.0,47154.0,2.49619705]
[1633086006116,0.0002,47155.0,47154.0,2.83619705]
[1633086006518,0.0002,47155.0,47154.0,3.05939705]
[1633086006919,0.0002,47155.0,47154.0,2.85119705]
[1633086007518,0.0002,47155.0,47154.0,3.07439705]
[1633086007719,0.0002,47155.0,47154.0,1.23019705]
[1633086007919,0.0002,47155.0,47154.0,1.1518849]
[1633086008321,0.0002,47155.0,47154.0,0.87329705]
[1633086008580,0.0002,47155.0,47154.0,0.86829705]
[1633086008919,0.0002,47155.0,47154.0,0.65156]
[1633086009120,0.0002,47155.0,47154.0,0.87320296]
[1633086009319,0.00149867,47155.0,47154.0,0.87320296]
[1633086009520,0.0002,47162.0,47154.0,0.87320296]
[1633086009721,0.08995472,47160.0,47156.0,0.2232]
[1633086009923,0.08995472,47160.0,47159.0,0.00125487]
[1633086010121,0.08995472,47160.0,47159.0,0.22290945]
[1633086010320,0.08995472,47160.0,47159.0,0.90946945]
[1633086010924,0.08995472,47160.0,47159.0,0.90818287]
[1633086011588,0.08995472,47160.0,47159.0,0.871928]
[1633086011724,0.08995472,47160.0,47159.0,0.65156]
[1633086011926,0.08995472,47160.0,47159.0,0.87319449]
[1633086012128,0.08995472,47160.0,47159.0,0.65282649]
[1633086012326,0.08995472,47160.0,47159.0,0.50414888]
[1633086012327,2.10964327,47160.0,47159.0,0.50414888]
[1633086012524,2.10964327,47160.0,47155.0,0.1]
[1633086012525,1.59801,47159.0,47155.0,0.1]
[1633086012724,0.204279,47158.0,47155.0,0.1]
[1633086012925,1.704279,47156.0,47155.0,0.1]
[1633086013126,2.11557426,47156.0,47155.0,0.1]
[1633086013325,2.11557426,47156.0,47134.0,0.51936104]
[1633086013534,0.45561964,47155.0,47134.0,0.00254815]
[1633086013726,0.204279,47154.0,47134.0,0.38069674]
[1633086013924,0.43282619,47155.0,47134.0,0.38069674]
[1633086014124,1.91129526,47156.0,47134.0,0.38069674]
[1633086014324,0.64260486,47145.0,47134.0,0.38069674]
[1633086014596,0.11828666,47139.0,47136.0,0.2250086]
[1633086014725,0.11228666,47139.0,47138.0,0.2499]
[1633086014926,2.45933186,47139.0,47138.0,0.09801]
[1633086015128,2.66361086,47139.0,47138.0,0.09801]
[1633086015326,1.75714026,47139.0,47138.0,0.09801]
[1633086015627,1.75838394,47139.0,47138.0,0.09801]
[1633086015828,1.66223107,47122.0,47108.0,0.26127]
[1633086016029,1.98587975,47122.0,47114.0,0.00119742]
[1633086016233,2.1481979,47122.0,47114.0,0.00119742]
[1633086016430,0.11963671,47099.0,47095.0,0.00127579]
[1633086016626,0.38939451,47098.0,47093.0,0.005]
[1633086016931,0.08689258,47100.0,47093.0,0.005]
[1633086016932,0.2055601,47097.0,47093.0,0.005]
[1633086017130,1.50124824,47094.0,47093.0,0.005]
[1633086017326,1.70552724,47094.0,47093.0,0.005]
[1633086017588,1.59552724,47094.0,47088.0,0.0004]
[1633086017725,0.204279,47093.0,47088.0,0.0004]
[1633086017925,0.08689258,47100.0,47089.0,0.42473]
[1633086018523,0.09719854,47098.0,47089.0,0.42473]
[1633086018724,0.08689258,47100.0,47089.0,0.42473]
[1633086018927,0.204279,47099.0,47089.0,0.42473]
[1633086019325,0.00125587,47094.0,47089.0,0.42473]
[1633086019724,0.00121917,47090.0,47089.0,0.42473]
[1633086019925,0.0012392,47095.0,47089.0,0.42273]
[1633086020125,0.00244556,47099.0,47090.0,0.0760234]
[1633086020326,0.00244556,47099.0,47090.0,0.28168041]
[1633086020525,0.00244556,47099.0,47089.0,0.42273]
[1633086020726,0.00126614,47092.0,47089.0,0.42273]
[1633086021127,0.1012394,47099.0,47091.0,0.00127014]
[1633086021325,0.1012394,47099.0,47092.0,0.42273]